bitfinex-derivatives/quotes_ETHF0:USTF0_20241105
["timestamp","ask_amount","ask_price","bid_price","bid_amount"]
[1730809969661,3.2078,2440.3,2439.9,1.02499]
[1730809969662,44.0078,2440.3,2439.9,1.02499]
[1730809969861,3.61773,2440.3,2440.2,0.40994]
[1730809970457,3.2078,2440.3,2440.2,0.40994]
[1730809970661,3.2078,2440.3,2440.2,2.97255395]
[1730809971258,40.8,2440.5,2440.4,0.40991]
[1730809971661,44.8976,2440.5,2440.4,0.40991]
[1730809971963,4.0976,2440.5,2440.4,0.40991]
[1730809972162,4.50749,2440.5,2440.4,0.40991]
[1730809972364,4.0976,2440.5,2440.4,0.40991]
[1730809972758,41.20988,2440.6,2440.5,0.40989]
[1730809973151,40.8,2440.6,2440.5,0.40989]
[1730809973359,4.194,2440.7,2440.5,0.40989]
[1730809973655,4.194,2440.7,2440.3,1.02481]
[1730809973855,4.194,2440.7,2440.5,0.40988]
[1730809973856,41.20986,2440.7,2440.5,0.40988]
[1730809974054,0.40987,2440.6,2440.5,0.40988]
[1730809974256,0.40987,2440.6,2440.5,0.87388]
[1730809974462,0.40987,2440.6,2440.5,0.464]
[1730809974665,0.40987,2440.6,2440.5,0.87389]
[1730809974960,40.8,2440.7,2440.5,0.87389]
[1730809974961,40.8,2440.7,2440.5,0.464]
[1730809975166,41.20987,2440.7,2440.6,0.40987]
[1730809975353,40.8,2440.7,2440.5,0.464]
[1730809975555,0.40987,2440.6,2440.5,0.464]
[1730809975857,0.40987,2440.6,2440.5,0.87389]
[1730809976063,41.20987,2440.7,2440.6,0.40987]
[1730809976358,0.40987,2440.6,2440.5,0.87388]
[1730809977054,40.8,2440.7,2440.5,0.464]
[1730809977254,41.20987,2440.7,2440.6,0.40987]
[1730809977659,40.8,2440.7,2440.6,0.40987]
[1730809977859,41.20986,2440.7,2440.6,0.84057]
[1730809978265,0.40986,2440.7,2440.6,0.4307]
[1730809978957,40.8,2440.8,2440.5,0.87388]
[1730809979263,40.8,2440.8,2440.5,0.464]
[1730809979463,0.40987,2440.6,2440.5,0.87389]
[1730809979967,0.40987,2440.7,2440.6,0.40987]
[1730809980157,40.8,2440.8,2440.5,0.464]
[1730809980360,3.2078,2440.9,2440.8,0.40984]
[1730809980558,3.2078,2441.3,2440.8,3.2078]
[1730809980858,3.2078,2441.3,2440.7,3.58726395]
[1730809980859,0.40988,2440.6,2440.5,0.40989]
[1730809981055,0.40988,2440.6,2440.5,0.87049]
[1730809981258,0.40987,2440.6,2440.5,0.4606]
[1730809981459,0.40987,2440.6,2440.5,0.87049]
[1730809981659,0.40987,2440.6,2440.5,0.4606]
[1730809981870,1.1631,2440.8,2440.5,0.87048]
[1730809982073,0.40986,2440.7,2440.6,0.40987]
[1730809982260,1.1631,2440.8,2440.5,0.4606]
[1730809982461,0.40987,2440.7,2440.6,0.40987]
[1730809982662,0.40986,2440.7,2440.6,0.40986]
[1730809982861,4.50746,2440.7,2440.6,0.40986]
[1730809983064,0.40986,2440.7,2440.6,0.40986]
[1730809983267,1.1631,2440.8,2440.7,0.40986]
[1730809983268,0.40985,2440.8,2440.7,0.40986]
[1730809983769,4.0968,2440.8,2440.7,0.40986]
[1730809986963,1.1954,2441.1,2440.7,2.56261395]
[1730809987270,44.41759,2441.2,2441.0,0.4098]
[1730809987463,44.0078,2441.2,2440.8,1.93391]
[1730809987663,44.0078,2441.2,2441.0,0.4098]
[1730809987664,44.41758,2441.2,2441.0,0.4098]
[1730809988365,40.8,2441.2,2440.8,1.93391]
[1730809988676,40.8,2441.2,2441.1,0.40979]
[1730809989164,4.1344,2441.5,2441.2,0.40976]
[1730809989370,0.40977,2441.3,2441.1,0.40978]
[1730809989672,41.20977,2441.3,2441.2,0.40977]
[1730809989867,40.8,2441.3,2441.2,0.40977]
[1730809990671,40.8,2441.3,2441.2,0.84137]
[1730809990874,0.40975,2441.4,2441.2,0.84137]
[1730809991175,0.40975,2441.4,2441.3,0.40976]
[1730809991374,4.50575,2441.4,2441.3,0.40976]
[1730809992669,4.50575,2441.4,2441.2,0.84136]
[1730809992865,0.40975,2441.4,2441.3,0.40976]
[1730809993073,4.50575,2441.4,2441.3,0.40976]
[1730809993573,4.096,2441.4,2441.2,0.4316]
[1730809993876,0.40976,2441.3,2441.2,0.84136]
[1730809994467,3.2078,2441.5,2441.2,0.4316]
[1730809994867,0.40974,2441.4,2441.3,0.40974]
[1730809995073,4.50574,2441.4,2441.3,0.40974]
[1730809995270,4.096,2441.4,2441.2,1.61235487]
[1730809995477,0.40976,2441.3,2441.2,2.02211487]
[1730809996381,0.40974,2441.4,2441.3,0.40974]
[1730809997075,41.20974,2441.4,2441.3,0.40974]
[1730809997271,0.40976,2441.3,2441.2,2.02211487]
[1730809997773,41.20975,2441.4,2441.3,0.40976]
[1730809997970,41.20974,2441.4,2441.3,0.40976]
[1730809998282,3.2078,2441.5,2441.4,0.40974]
[1730809998472,3.2078,2441.5,2441.4,0.85234]
[1730809998779,3.61752,2441.5,2441.4,0.85234]
[1730809999173,40.8,2441.7,2441.4,0.4426]
[1730809999377,41.20969,2441.7,2441.6,1.59046487]
[1730809999670,41.20969,2441.7,2441.6,1.18075487]
[1730809999875,45.30489,2441.7,2441.6,1.18075487]
[1730810001079,40.8,2441.7,2441.6,1.59046487]
[1730810001381,3.2078,2441.8,2441.7,0.40969]
[1730810001677,3.61747,2441.8,2441.7,2.04984487]
[1730810002172,3.61747,2441.8,2441.7,0.4594]
[1730810003275,0.40974,2441.4,2441.3,0.4594]
[1730810003475,4.23213,2441.5,2440.8,3.6696]
[1730810003676,0.40977,2441.2,2441.1,1.18075487]
[1730810003875,41.20977,2441.2,2441.1,1.18075487]
[1730810004378,40.8,2441.2,2441.1,1.59054487]
[1730810004879,0.7076,2441.4,2441.1,1.18075487]
[1730810005069,0.40976,2441.3,2441.2,1.18075487]
[1730810005277,0.40976,2441.3,2440.8,4.129]
[1730810005278,40.8,2441.3,2441.1,0.40978]
[1730810005474,40.8,2441.3,2441.0,2.55854321]
[1730810005670,0.40979,2441.1,2441.0,2.96833321]
[1730810006075,0.40979,2441.2,2441.0,2.96833321]
[1730810006375,0.40979,2441.2,2441.0,2.55854321]
[1730810006572,0.40979,2441.2,2441.1,0.40979]
[1730810006769,0.7076,2441.4,2441.0,2.55854321]
[1730810006972,0.40977,2441.2,2441.1,0.40979]
[1730810007578,0.40976,2441.3,2441.2,0.40977]
[1730810007984,0.7076,2441.4,2441.0,2.55854321]
[1730810008181,0.40976,2441.3,2441.0,2.55854321]
[1730810008682,0.40976,2441.3,2441.2,0.40977]
[1730810009276,0.40976,2441.3,2441.2,1.33087]
[1730810009674,0.40976,2441.3,2441.2,0.9211]
[1730810010888,0.40976,2441.3,2441.2,0.4531]
[1730810011593,0.40976,2441.3,2441.2,0.86287]
[1730810011890,0.40976,2441.3,2441.2,0.4531]
[1730810012577,4.23212,2441.5,2441.1,0.4521]
[1730810012780,0.40981,2441.0,2440.9,0.4667]
[1730810012980,0.40986,2440.7,2440.6,0.8722]
[1730810013183,0.40986,2440.7,2440.6,1.28207]
[1730810013383,0.40985,2440.8,2440.7,0.40985]
[1730810013894,0.4351,2440.9,2440.7,0.40985]
[1730810014083,0.40983,2440.9,2440.8,0.40983]
[1730810014485,0.4306,2441.1,2440.8,0.40983]
[1730810014686,0.40981,2441.0,2440.9,0.4484]
[1730810014892,0.40981,2441.0,2440.9,0.889]
[1730810017585,0.40981,2441.0,2440.6,0.4316]
[1730810017586,0.40986,2440.7,2440.6,0.4316]
[1730810018585,0.40986,2440.7,2440.6,0.84147]
[1730810019088,0.40986,2440.7,2440.6,0.4316]
[1730810020285,0.40986,2440.7,2440.6,0.84147]
[1730810021688,0.40985,2440.8,2440.6,2.99014321]
[1730810021892,0.40984,2440.8,2440.7,0.40985]
[1730810022091,0.40984,2440.8,2440.6,2.99014321]
[1730810022396,0.40984,2440.8,2440.7,0.40986]
[1730810022881,5.12044284,2441.1,2440.6,2.99014321]
[1730810023190,0.40984,2440.8,2440.7,0.40985]
[1730810023396,0.40983,2440.9,2440.8,0.40983]
[1730810024400,0.40983,2440.9,2440.8,0.40984]
[1730810024988,0.448,2441.1,2440.6,2.99014321]
[1730810025295,0.40985,2440.8,2440.7,0.40985]
[1730810025994,1.02452,2441.0,2440.5,0.906]
[1730810026290,0.4323,2440.9,2440.5,0.906]
[1730810026497,0.40983,2440.9,2440.8,0.40983]
[1730810026893,0.4098,2441.1,2441.0,0.4098]
[1730810027288,0.40981,2441.0,2440.9,1.73232]
[1730810027689,0.4098,2441.1,2441.0,0.4098]
[1730810028295,3.2078,2441.2,2440.9,1.73232]
[1730810028296,0.40981,2441.0,2440.9,1.73232]
[1730810028889,0.40981,2441.0,2440.9,1.3225]
[1730810029094,0.40981,2441.0,2440.9,1.73232]
[1730810030393,0.40981,2441.0,2440.9,1.3225]
[1730810030898,0.40981,2441.0,2440.9,1.73232]
[1730810032298,0.40981,2441.0,2440.9,1.3225]
[1730810032704,0.40981,2441.0,2440.9,1.73232]
[1730810032900,3.21735284,2441.2,2440.9,1.3225]
[1730810033202,0.40981,2441.0,2440.9,1.73231]
[1730810033589,3.21735284,2441.2,2440.9,1.3225]
[1730810033797,0.40979,2441.2,2440.9,1.3225]
[1730810034197,6.42515284,2441.3,2440.9,1.3225]
[1730810034399,0.40979,2441.1,2441.0,0.40979]
[1730810034595,6.42515284,2441.3,2440.9,1.3225]
[1730810034895,0.40981,2441.0,2440.9,0.4558]
[1730810035102,0.40981,2441.0,2440.9,0.86562]
[1730810036406,0.4098,2441.1,2440.9,0.86561]
[1730810036705,0.4098,2441.1,2441.0,0.4098]
[1730810037005,6.42515284,2441.3,2440.9,0.86562]
[1730810037006,0.40981,2441.0,2440.9,0.86562]
[1730810037297,0.4098,2441.1,2441.0,0.4098]
[1730810038100,0.4098,2441.1,2440.9,0.4558]
[1730810038293,0.4098,2441.1,2441.0,0.40981]
[1730810038708,7.44959284,2441.3,2440.9,0.4558]
[1730810039008,7.44959284,2441.3,2440.9,0.86562]
[1730810039009,0.40981,2441.0,2440.9,0.86562]
[1730810039204,0.40984,2440.8,2440.7,0.9225]
[1730810039500,0.40984,2440.8,2440.7,1.3623]
[1730810040095,0.40984,2440.8,2440.7,1.77216]
[1730810043308,0.40984,2440.9,2440.8,0.40982]
[1730810044406,0.40984,2440.8,2440.7,1.77214]
[1730810045404,3.2078,2441.0,2440.7,1.3623]
[1730810045605,0.40984,2440.9,2440.8,0.40982]
[1730810047907,3.61762,2441.0,2440.9,0.40982]
[1730810048309,6.83497284,2441.0,2440.9,0.40982]
[1730810049500,0.40982,2440.9,2440.8,1.59077551]
[1730810051811,4.0968,2440.9,2440.6,0.40987]
[1730810052012,0.40988,2440.7,2440.6,0.40986]
[1730810052306,0.40989,2440.6,2440.5,0.40988]
[1730810053105,3.64675284,2440.8,2440.4,2.07104551]
[1730810053318,0.40987,2440.7,2440.6,0.40987]
[1730810053707,6.85455284,2440.8,2440.5,1.18094551]
[1730810053901,0.40987,2440.6,2440.5,1.59082551]
[1730810055013,0.40987,2440.7,2440.6,0.40986]
[1730810055212,0.40987,2440.6,2440.5,1.59082551]
[1730810055717,0.40987,2440.7,2440.6,0.40987]
[1730810056412,0.40987,2440.6,2440.5,1.59082551]
[1730810056710,0.40987,2440.6,2440.5,1.82059188]
[1730810057520,3.62722284,2440.7,2440.6,0.40987]
[1730810058414,3.21735284,2440.7,2440.6,0.40987]
[1730810058722,3.21735284,2440.9,2440.8,0.40984]
[1730810058921,3.21735284,2441.0,2440.8,0.22976997]
[1730810059222,3.62716284,2441.0,2440.9,0.9058]
[1730810059413,3.62716284,2441.0,2440.9,1.3621]
[1730810059713,3.62716284,2441.0,2440.9,1.77192]
[1730810060222,3.62716284,2441.0,2440.9,1.3621]
[1730810060413,3.62716284,2441.0,2440.9,0.9204]
[1730810061316,0.40983,2440.9,2440.8,0.40984]
[1730810061707,0.40983,2440.9,2440.8,0.63961138]
[1730810061911,0.40982,2440.9,2440.8,0.63960138]
[1730810063814,3.62716284,2441.0,2440.9,0.40982]
[1730810069522,3.21735284,2441.0,2440.9,0.40982]
[1730810069920,3.62716284,2441.0,2440.9,0.40982]
[1730810070516,3.21735284,2441.0,2440.9,0.40982]
[1730810072222,3.62716284,2441.0,2440.9,0.40982]
[1730810073423,3.21735284,2441.0,2440.9,0.40982]
[1730810073724,3.62716284,2441.0,2440.9,0.64270747]
[1730810076331,3.62716284,2441.0,2440.9,0.6426995]
[1730810077032,3.21735284,2441.0,2440.9,0.6426995]
[1730810078425,3.62716284,2441.0,2440.9,0.6426995]
[1730810078828,3.62716284,2441.0,2440.9,0.64270205]
[1730810079332,3.21735284,2441.0,2440.9,0.64270205]
[1730810079535,3.62716284,2441.0,2440.9,0.64270205]
[1730810080129,3.21735284,2441.0,2440.9,0.20676181]
[1730810080334,3.21735284,2441.0,2440.9,0.40982]
[1730810080823,3.62716284,2441.0,2440.9,0.40982]
[1730810081424,3.21735284,2441.0,2440.9,0.40982]
[1730810082524,6.42515284,2441.1,2441.0,0.40981]
[1730810082731,6.42515284,2441.1,2441.0,6.11107248]
[1730810083232,6.83494284,2441.1,2441.0,6.11107248]
[1730810083425,3.2078,2441.1,2441.0,6.11107248]
[1730810084232,3.2078,2441.1,2441.0,6.48595863]
[1730810084820,3.62713284,2441.2,2441.1,0.40979]
[1730810085025,3.62713284,2441.2,2441.1,0.83359]
[1730810085224,6.83493284,2441.2,2441.1,1.29199]
[1730810085425,6.83492284,2441.2,2441.1,0.8822]
[1730810085727,6.83492284,2441.2,2441.1,0.4584]
[1730810091934,6.83492284,2441.2,2441.1,0.86819]
[1730810092442,6.83492284,2441.2,2441.1,0.4584]
[1730810092739,6.83492284,2441.2,2441.1,0.86819]
[1730810093441,6.83492284,2441.2,2441.1,0.4584]
[1730810094240,6.83492284,2441.2,2441.1,0.86819]
[1730810095841,6.83492284,2441.2,2441.1,0.4584]
[1730810096343,6.83492284,2441.2,2441.1,0.86819]
[1730810096843,3.62712284,2441.2,2441.1,0.86819]
[1730810097346,6.83492284,2441.2,2441.1,0.86819]
[1730810097845,6.83492284,2441.2,2441.1,0.4584]
[1730810098244,6.83492284,2441.2,2441.1,0.86819]
[1730810099640,6.83492284,2441.2,2441.1,0.4584]
[1730810101445,6.83492284,2441.2,2441.1,0.86819]
[1730810101843,6.83492284,2441.2,2440.9,0.464]
[1730810101844,0.40981,2441.0,2440.9,0.464]
[1730810102152,0.40985,2440.8,2440.7,0.83746]
[1730810102545,3.21735284,2440.9,2440.8,0.40984]
[1730810102746,3.62717284,2440.9,2440.8,0.40984]
[1730810102942,3.21735284,2440.9,2440.7,0.83745]
[1730810103147,3.21735284,2440.9,2440.6,0.4578]
[1730810103446,0.40984,2440.8,2440.7,0.23428164]
[1730810103636,3.89479284,2440.8,2440.7,0.23428164]
[1730810103841,0.67744,2440.8,2440.7,0.23428164]
[1730810104051,3.62719284,2440.8,2440.7,0.66188164]
[1730810104250,0.40984,2440.8,2440.7,1.07174164]
[1730810104552,3.62719284,2440.8,2440.7,0.66188164]
[1730810105249,0.40984,2440.8,2440.7,0.66188164]
[1730810105550,3.62719284,2440.8,2440.7,0.66188164]
[1730810106351,3.62719284,2440.8,2440.7,1.07174164]
[1730810106352,0.40984,2440.8,2440.7,1.07174164]
[1730810107142,0.40984,2440.8,2440.7,2.25260412]
[1730810110247,0.40984,2440.8,2440.7,2.68330412]
[1730810110847,3.21735284,2440.9,2440.7,2.27344412]
[1730810111049,3.62719284,2440.9,2440.8,0.64412164]
[1730810112566,0.40984,2440.8,2440.7,0.83745]
[1730810112758,0.40984,2440.8,2440.7,1.07170738]
[1730810114357,0.40984,2440.8,2440.7,1.07167729]
[1730810114546,0.40984,2440.8,2440.7,0.66181729]
[1730810114756,3.62719284,2440.8,2440.7,0.66181729]
[1730810115162,3.62719284,2440.8,2440.7,0.4276]
[1730810115865,3.62719284,2440.8,2440.7,0.83746]
[1730810116364,3.62719284,2440.8,2440.7,0.4276]
[1730810117268,3.62719284,2440.8,2440.7,0.83746]
[1730810117659,3.21735284,2440.8,2440.5,1.64386248]
[1730810117862,0.40987,2440.7,2440.6,0.64404237]
[1730810118664,0.40987,2440.7,2440.6,0.23417237]
[1730810118865,0.40987,2440.7,2440.6,0.64404237]
[1730810120267,0.40987,2440.7,2440.6,0.23417237]
[1730810120459,0.40987,2440.6,2440.5,2.50034248]
[1730810120765,0.40987,2440.6,2440.5,2.73447182]
[1730810121259,0.40987,2440.7,2440.6,0.40987]
[1730810122055,0.40987,2440.6,2440.5,1.31949]
[1730810122260,0.40987,2440.6,2440.5,1.55361525]
[1730810122453,4.50747,2440.6,2440.5,0.4466]
[1730810122656,8.33012,2440.6,2440.2,0.4671]
[1730810122853,8.33012,2440.6,2439.9,3.2078]
[1730810122854,0.40994,2440.2,2440.1,0.466]
[1730810123865,0.40994,2440.2,2440.1,0.87596]
[1730810126066,0.40994,2440.2,2440.1,0.466]
[1730810126255,1.59080248,2440.2,2440.1,0.466]
[1730810126463,5.95680248,2440.2,2440.1,0.466]
[1730810127171,4.50834,2440.2,2440.1,0.87596]
[1730810127461,0.40994,2440.2,2440.1,0.87596]
[1730810127864,4.50834,2440.2,2440.1,0.87596]
[1730810128063,4.50834,2440.2,2440.1,0.466]
[1730810128457,0.40994,2440.2,2440.1,0.466]
[1730810128864,4.50834,2440.2,2440.1,0.466]
[1730810129473,0.40994,2440.2,2440.1,0.466]
[1730810129861,4.50834,2440.2,2440.1,0.466]
[1730810130467,0.40994,2440.2,2440.1,0.87596]
[1730810130861,0.40994,2440.2,2440.1,0.466]
[1730810131063,4.50834,2440.2,2440.1,0.466]
[1730810132570,0.40994,2440.2,2440.1,0.466]
[1730810133068,4.50834,2440.2,2440.1,0.466]
[1730810133269,0.40994,2440.2,2440.1,0.466]
[1730810133971,3.2078,2440.3,2440.2,0.40994]
[1730810134165,0.4099,2440.5,2440.4,0.40991]
[1730810134667,3.2078,2440.6,2440.5,0.40989]
[1730810134861,0.40989,2440.5,2440.4,1.30419]
[1730810135074,0.40989,2440.5,2440.4,0.8943]
[1730810135262,1.59075248,2440.5,2440.4,0.8943]
[1730810136268,1.63906248,2440.5,2439.9,5.41363248]
[1730810136472,0.40994,2440.3,2440.2,0.40994]
[1730810137269,0.40991,2440.4,2440.3,0.40992]
[1730810138072,0.40993,2440.3,2440.2,0.40993]
[1730810138274,1.63906248,2440.5,2440.1,0.4616]
[1730810138474,0.40992,2440.4,2440.3,0.40992]
[1730810138970,0.40993,2440.3,2440.2,0.40993]
[1730810139171,1.63906248,2440.5,2440.1,0.4616]
[1730810139565,0.40993,2440.3,2440.2,0.40993]
[1730810139767,0.40992,2440.4,2440.3,0.40991]
[1730810140378,0.4099,2440.5,2440.4,0.4099]
[1730810140774,0.40991,2440.4,2440.3,0.40991]
[1730810141174,0.4099,2440.5,2440.4,0.4099]
[1730810142474,0.40991,2440.5,2440.4,0.4099]
[1730810143772,3.61769,2440.6,2440.5,0.40989]
[1730810144277,3.61769,2440.6,2440.4,0.4099]
[1730810144278,0.4099,2440.5,2440.4,0.4099]
[1730810145063,3.61769,2440.6,2440.5,0.40989]
[1730810146169,3.2078,2440.6,2440.2,1.02485]
[1730810146383,0.40992,2440.4,2440.3,0.40992]
[1730810146576,0.40993,2440.3,2440.2,0.40993]
[1730810146875,0.40993,2440.3,2440.2,0.40994]
[1730810147075,0.40992,2440.4,2440.3,0.40992]
[1730810147470,0.4099,2440.5,2440.4,0.4099]
[1730810147776,0.40992,2440.4,2440.3,0.40992]
[1730810148274,0.40992,2440.4,2440.1,0.87154]
[1730810148275,0.40994,2440.2,2440.1,0.87154]
[1730810148777,0.40994,2440.3,2440.2,0.40994]
[1730810148973,1.64556248,2440.4,2440.1,0.8962]
[1730810149173,0.40993,2440.3,2440.2,0.40993]
[1730810149678,1.64556248,2440.4,2440.1,0.8962]
[1730810149878,0.40992,2440.3,2440.2,0.40994]
[1730810150086,1.64556248,2440.4,2440.1,0.8962]
[1730810150281,0.40994,2440.2,2440.1,1.30615]
[1730810151175,0.40994,2440.3,2440.2,0.40994]
[1730810153881,4.79858248,2440.4,2440.3,0.40992]
[1730810154475,3.61772,2440.4,2440.3,0.40992]
[1730810154674,0.40994,2440.3,2440.2,0.40994]
[1730810157482,4.38866248,2440.4,2440.1,0.8962]
[1730810157669,4.38866248,2440.4,2440.1,1.30614]
[1730810157670,0.40994,2440.2,2440.1,1.30614]
[1730810157874,4.65626248,2440.4,2440.1,1.13024884]
[1730810158183,0.40994,2440.3,2440.2,0.40994]
[1730810159177,4.65626248,2440.4,2440.1,1.30614]
[1730810159178,0.40994,2440.2,2440.1,1.30614]
[1730810159379,4.65626248,2440.4,2440.1,1.13030775]
[1730810159575,0.40994,2440.3,2440.2,0.40994]
[1730810160083,3.61771,2440.4,2440.3,0.40992]
[1730810161081,0.40993,2440.3,2440.2,0.40993]
[1730810161284,3.2078,2440.4,2440.2,0.23412072]
[1730810161485,3.2078,2440.4,2440.3,0.40992]
[1730810161486,3.61772,2440.4,2440.3,0.40992]
[1730810162283,3.61771,2440.4,2440.3,0.40992]
[1730810163286,3.2078,2440.4,2440.3,0.64409341]
[1730810163479,3.61771,2440.4,2440.3,0.64409341]
[1730810163786,3.61771,2440.4,2440.3,0.40992]
[1730810163974,3.2078,2440.4,2440.1,0.8962]
[1730810164177,3.2078,2440.4,2440.2,0.2341865]
[1730810164377,0.40994,2440.3,2440.2,0.40994]
[1730810164579,0.40994,2440.3,2440.2,0.64566848]
[1730810165582,0.40994,2440.3,2440.2,0.23572848]
[1730810165784,3.2078,2440.4,2440.3,0.40992]
[1730810165785,3.61771,2440.4,2440.3,0.40992]
[1730810165985,3.61771,2440.4,2440.3,0.64564848]
[1730810168188,3.2078,2440.4,2440.3,0.64564848]
[1730810168485,3.61771,2440.4,2440.3,0.64564848]
[1730810169789,3.61771,2440.4,2440.3,0.40992]
[1730810170087,3.2078,2440.4,2440.3,0.40992]
[1730810170282,3.61771,2440.4,2440.3,0.64590513]
[1730810170478,0.40991,2440.4,2440.3,0.64590513]
[1730810171184,6.96137831,2440.5,2440.3,0.23598513]
[1730810171497,3.2078,2440.5,2440.4,0.64589513]
[1730810171991,3.61769,2440.5,2440.4,0.64589513]
[1730810172290,3.2078,2440.5,2440.4,0.64589513]
[1730810172885,3.61769,2440.5,2440.4,0.64589513]
[1730810173484,3.61769,2440.5,2440.4,0.40991]
[1730810173790,3.61769,2440.5,2440.4,0.645919]
[1730810174389,3.2078,2440.5,2440.4,0.645919]
[1730810175191,3.61769,2440.5,2440.4,0.645919]
[1730810176093,0.40989,2440.5,2440.4,0.645919]
[1730810176294,4.16346831,2440.5,2440.4,0.645919]
[1730810176492,3.75357831,2440.5,2440.4,0.645919]
[1730810176892,8.55212079,2440.6,2440.5,0.40989]
[1730810177088,6.96137831,2440.6,2440.5,1.098099]
[1730810177285,3.2078,2440.6,2440.5,4.95969]
[1730810177484,3.2078,2440.6,2440.5,6.37670614]
[1730810177694,3.2078,2440.6,2440.5,7.67180171]
[1730810177891,3.2078,2440.6,2440.5,8.24506579]
[1730810178293,3.2078,2440.6,2440.5,2.04943017]
[1730810179087,3.2078,2440.6,2440.5,6.14703017]
[1730810181096,3.2078,2440.6,2440.5,5.57376609]
[1730810181292,3.2078,2440.6,2440.5,6.14653655]
[1730810182300,0.40987,2440.7,2440.6,0.40987]
[1730810182504,0.40987,2440.7,2440.6,0.64602366]
[1730810182694,3.61765,2440.8,2440.7,0.40986]
[1730810182894,3.61765,2440.8,2440.7,0.64601366]
[1730810184490,3.61765,2440.8,2440.7,0.64571389]
[1730810185099,3.61764,2440.8,2440.7,0.64570298]
[1730810186100,3.61764,2440.8,2440.7,0.40986]
[1730810186399,3.2078,2440.8,2440.7,0.40986]
[1730810186906,3.2078,2440.8,2440.7,0.64566544]
[1730810187202,0.40979,2441.1,2441.0,0.40981]
[1730810187692,3.2078,2441.2,2440.9,0.4548]
[1730810187898,3.61759,2441.2,2441.1,0.40979]
[1730810188202,3.2078,2441.2,2440.9,0.4548]
[1730810188402,0.40979,2441.1,2441.0,0.40979]
[1730810188905,3.2078,2441.2,2440.9,0.4548]
[1730810189107,3.2078,2441.2,2441.1,0.40979]
[1730810189701,6.86835436,2441.6,2441.1,0.40979]
[1730810189702,0.40974,2441.4,2441.3,0.40976]
[1730810190001,9.05187436,2441.6,2441.2,0.8535]
[1730810190201,4.38866248,2441.6,2441.3,0.4571]
[1730810190405,4.38866248,2441.6,2441.4,0.40973]
[1730810190700,0.40972,2441.5,2441.3,0.86684]
[1730810190907,4.38866248,2441.6,2441.3,0.4571]
[1730810191099,0.40973,2441.5,2441.4,0.40973]
[1730810191602,0.40973,2441.5,2441.3,0.86684]
[1730810191804,4.38866248,2441.6,2441.3,0.4571]
[1730810192001,4.38866248,2441.6,2441.4,0.40974]
[1730810192197,3.61751,2441.6,2441.4,0.40974]
[1730810192396,3.2078,2441.6,2441.5,0.86022]
[1730810192999,3.2078,2441.6,2441.5,4.95622]
[1730810193299,3.2078,2441.6,2441.5,0.86022]
[1730810194307,3.2078,2441.6,2441.5,4.95622]
[1730810195701,3.2078,2441.6,2441.5,0.86022]
[1730810195897,3.2078,2441.6,2441.5,6.13708248]
[1730810198711,3.2078,2441.6,2441.5,2.04108248]
[1730810201503,0.4097,2441.7,2441.5,1.63136248]
[1730810201703,0.4097,2441.7,2441.6,0.40971]
[1730810201903,0.40971,2441.6,2441.5,0.4505]
[1730810202905,1.44856248,2441.7,2441.3,0.4571]
[1730810203108,1.44856248,2441.7,2440.9,4.2198]
[1730810203109,0.40977,2441.3,2441.1,0.84948]
[1730810203314,0.40977,2441.2,2441.1,0.4397]
[1730810203809,0.40979,2441.1,2441.0,0.4523]
[1730810204406,0.40979,2441.1,2441.0,0.86211]
[1730810208317,0.40979,2441.1,2441.0,2.04297248]
[1730810209602,3.2078,2441.3,2441.1,0.40977]
[1730810209805,3.61757,2441.3,2441.2,2.04253248]
[1730810210010,0.4561,2441.5,2441.2,1.63276248]
[1730810210508,0.86583,2441.5,2441.4,0.40974]
[1730810211816,0.4561,2441.5,2441.3,1.62996248]
[1730810212011,0.40974,2441.4,2441.3,2.03970248]
[1730810212615,3.2078,2441.6,2441.3,1.62996248]
[1730810212815,3.2078,2441.6,2441.5,1.59058248]
[1730810213020,3.61751,2441.6,2441.5,1.59058248]
[1730810213208,3.61751,2441.6,2441.5,2.02358248]
[1730810213605,3.2078,2441.6,2441.5,1.61386248]
[1730810213914,3.2078,2441.6,2441.5,2.02358248]
[1730810215209,0.40969,2441.7,2441.6,0.40971]
[1730810217013,0.40971,2441.6,2441.5,2.02357248]
[1730810217609,0.40969,2441.7,2441.6,0.40969]
[1730810218422,0.87868,2441.8,2441.7,0.40969]
[1730810218616,3.6768,2441.8,2441.5,1.61386248]
[1730810218816,0.40969,2441.7,2441.6,0.40969]
[1730810220315,4.85766248,2441.8,2441.5,0.433]
[1730810220517,4.85766248,2441.8,2441.7,0.40969]
[1730810220518,5.26734248,2441.8,2441.7,0.40969]
[1730810220819,4.85766248,2441.8,2441.5,0.433]
[1730810221010,0.4097,2441.7,2441.6,0.4097]
[1730810221214,3.61748,2441.8,2441.7,0.40969]
[1730810221415,3.61748,2441.8,2441.5,1.61386248]
[1730810221416,3.2078,2441.8,2441.5,1.61386248]
[1730810221627,0.40969,2441.7,2441.6,0.40971]
[1730810221923,0.40969,2441.7,2441.5,1.61386248]
[1730810221924,3.2078,2441.8,2441.5,1.61386248]
[1730810222119,3.61748,2441.8,2441.7,0.40969]
[1730810222324,3.2078,2441.8,2441.6,1.18086248]
[1730810222520,0.40969,2441.7,2441.6,1.59056248]
[1730810222919,0.40969,2441.7,2441.6,0.4097]
[1730810223319,3.2078,2441.8,2441.7,0.40969]
[1730810223320,3.61748,2441.8,2441.7,0.40969]
[1730810223727,3.2078,2441.8,2441.5,1.61386248]
[1730810224117,3.61748,2441.8,2441.7,0.40969]
[1730810224316,0.40968,2441.8,2441.7,0.40969]
[1730810224518,3.2078,2441.8,2441.5,1.61386248]
[1730810224814,3.61749,2441.8,2441.7,0.40969]
[1730810225012,0.40969,2441.7,2441.6,0.40969]